bitfinex-derivatives/quotes_SOLF0:USTF0_20240824
["timestamp","ask_amount","ask_price","bid_price","bid_amount"]
[1724516556163,3.16035323,160.56,160.53,0.04416722]
[1724516556762,0.04765323,160.56,160.53,0.04416722]
[1724516557973,0.04765323,160.56,160.53,23.99416722]
[1724516558559,0.04765323,160.56,160.55,23.95]
[1724516560360,0.04765323,160.56,160.54,3.1129]
[1724516561555,0.04765323,160.56,160.53,23.99416722]
[1724516561761,3.1129,160.55,160.53,0.04416722]
[1724516561966,0.04765323,160.56,160.53,0.04416722]
[1724516562259,3.113,160.54,160.53,0.04416722]
[1724516562460,0.04765323,160.56,160.53,0.04416722]
[1724516564167,3.1129,160.55,160.53,0.04416722]
[1724516564468,0.04765323,160.56,160.53,0.04416722]
[1724516566370,3.1129,160.55,160.53,0.04416722]
[1724516570270,3.16035323,160.56,160.53,0.04416722]
[1724516571076,0.04765323,160.56,160.39,0.5074]
[1724516571269,25.1528,160.55,160.43,23.95]
[1724516571473,3.1142,160.49,160.44,3.1148]
[1724516571970,0.04156805,160.48,160.45,0.04264691]
[1724516573074,0.04156805,160.48,160.37,23.95]
[1724516573075,3.1151,160.44,160.38,28.0361]
[1724516573368,3.1151,160.44,160.29,232.65008636]
[1724516573369,2.5319,160.47,160.35,23.95]
[1724516573565,3.1158,160.4,160.34,4.4257]
[1724516573771,3.1158,160.4,160.34,1.3088]
[1724516574118,0.04685499,160.39,160.35,0.03991355]
[1724516574370,0.04685499,160.39,160.35,0.04005684]
[1724516575085,0.04685499,160.39,160.35,23.99005684]
[1724516575968,0.04685499,160.39,160.35,27.10675684]
[1724516576174,0.04685499,160.39,160.35,23.99005684]
[1724516576469,0.04685499,160.39,160.35,0.04005684]
[1724516577408,0.04685499,160.39,160.35,23.99005684]
[1724516578077,0.04685499,160.39,160.37,23.95]
[1724516578274,2.5319,160.47,160.37,23.95]
[1724516578570,1.3064,160.47,160.4,27.0656]
[1724516579076,3.1149,160.45,160.4,27.0656]
[1724516579271,0.04332859,160.44,160.41,0.0462014]
[1724516579976,0.04332859,160.44,160.43,23.95]
[1724516580178,3.1139,160.5,160.43,23.95]
[1724516580476,1.2361,160.51,160.45,23.95]
[1724516581173,0.04205868,160.5,160.46,0.04256511]
[1724516581368,3.1142,160.49,160.46,0.04256511]
[1724516582177,0.04205868,160.5,160.46,0.04256511]
[1724516582375,0.04205868,160.5,160.47,23.95]
[1724516582879,0.04205868,160.5,160.47,27.0644]
[1724516583381,0.04205868,160.5,160.47,23.95]
[1724516584786,0.04205868,160.5,160.49,23.95]
[1724516584979,0.04205868,160.5,160.49,27.064]
[1724516586683,0.04205868,160.5,160.47,23.95]
[1724516587079,0.04205868,160.5,160.48,2.81975063]
[1724516587280,0.04205868,160.5,160.47,23.95]
[1724516587481,0.04205868,160.5,160.49,3.114]
[1724516588185,0.04205868,160.5,160.48,3.1142]
[1724516588988,0.04205868,160.5,160.49,3.114]
[1724516590176,0.04205868,160.5,160.47,23.95]
[1724516590486,0.04205868,160.5,160.46,0.04256511]
[1724516590780,0.04205868,160.5,160.48,3.1141]
[1724516590986,0.04205868,160.5,160.49,23.95]
[1724516591280,1.2647,160.6,160.5,3.1138]
[1724516591488,2.4917,160.6,160.52,23.95]
[1724516592188,2.4917,160.6,160.49,23.95]
[1724516592389,2.4917,160.6,160.53,0.04614087]
[1724516592988,23.95,160.56,160.47,23.95]
[1724516593189,4.31664745,160.55,160.44,23.95]
[1724516593485,3.114,160.49,160.44,3.1148]
[1724516594094,0.04487544,160.48,160.45,0.0404216]
[1724516594392,0.04487544,160.48,160.45,3.1552216]
[1724516594691,0.04487544,160.48,160.45,0.0404216]
[1724516595094,0.04487544,160.48,160.45,3.1551216]
[1724516595293,0.04487544,160.48,160.45,0.0404216]
[1724516596589,3.1144,160.47,160.45,0.0404216]
[1724516596784,0.04487544,160.48,160.45,0.0404216]
[1724516597785,0.04487544,160.48,160.42,3.1152]
[1724516597982,0.04487544,160.48,160.4,23.95]
[1724516598182,3.115,160.44,160.39,3.1158]
[1724516598890,3.15624387,160.44,160.41,0.04527079]
[1724516599289,3.1154,160.43,160.41,0.04527079]
[1724516599489,0.04124387,160.44,160.41,0.04527079]
[1724516601294,3.15634387,160.44,160.41,0.04527079]
[1724516602589,0.04124387,160.44,160.41,0.04527079]
[1724516603897,3.15644387,160.44,160.41,0.04527079]
[1724516604195,0.04124387,160.44,160.41,0.04527079]
[1724516607091,1.2152,160.54,160.42,26.77369929]
[1724516607298,3.7485,160.54,160.45,23.95]
[1724516607493,3.7485,160.54,160.46,3.1144]
[1724516608109,3.1138,160.51,160.48,0.03936432]
[1724516608309,0.04142743,160.52,160.48,0.03936432]
[1724516608713,3.114,160.49,160.48,0.03936432]
[1724516608911,0.04142743,160.52,160.48,0.03936432]
[1724516609616,6.229,160.74,160.5,23.95]
[1724516609912,2.5367,160.65,160.53,23.95]
[1724516610207,3.1118,160.61,160.56,3.1127]
[1724516610707,3.1115,160.62,160.57,0.04480445]
[1724516611706,2.5367,160.65,160.57,0.04480445]
[1724516611903,2.5367,160.65,160.58,23.95]
[1724516612307,23.95,160.77,160.6,23.95]
[1724516612308,3.08745095,160.68,160.6,23.95]
[1724516612509,3.08745095,160.68,160.62,0.04785621]
[1724516612713,23.95,160.72,160.62,0.04785621]
[1724516612911,3.06410833,160.71,160.65,0.0462773]
[1724516613507,23.95,160.72,160.65,0.0462773]
[1724516613713,3.05290387,160.71,160.65,0.0462773]
[1724516614213,23.95,160.72,160.6,23.95]
[1724516614407,3.1108,160.66,160.6,23.95]
[1724516614607,3.14676618,160.7,160.6,23.95]
[1724516614810,3.1107,160.67,160.6,23.95]
[1724516615007,3.09606206,160.7,160.61,3.1116]
[1724516615301,0.04331106,160.67,160.64,0.0397612]
[1724516617318,23.95,160.83,160.66,23.95]
[1724516617513,3.09719992,160.83,160.74,23.95]
[1724516617814,23.95,160.86,160.74,23.95]
[1724516618117,23.95,160.83,160.71,23.95]
[1724516618311,1.2288,160.82,160.75,0.04178881]
[1724516618911,3.108,160.8,160.75,0.04178881]
[1724516619307,3.1082,160.8,160.75,0.04178881]
[1724516619512,1.2288,160.82,160.75,0.04178881]
[1724516620173,1.2288,160.82,160.6,31.57204761]
[1724516620174,23.95,160.81,160.69,23.95]
[1724516620509,23.95,160.81,160.7,3.1099]
[1724516620905,23.95,160.81,160.69,23.95]
[1724516621110,0.04469193,160.77,160.73,0.04733713]
[1724516621317,2.425,160.77,160.67,27.0604]
[1724516621516,2.425,160.77,160.64,23.95]
[1724516621517,23.95,160.76,160.64,23.95]
[1724516621814,23.95,160.74,160.61,48.85]
[1724516622208,23.95,160.74,160.66,0.04327594]
[1724516622415,0.04181379,160.69,160.66,0.04327594]
[1724516623816,0.04181379,160.69,160.61,24.9]
[1724516624116,3.1106,160.67,160.61,28.0115]
[1724516624615,23.95,160.71,160.61,24.9]
[1724516624807,23.95,160.71,160.61,28.0115]
[1724516625013,0.04760996,160.68,160.64,0.04369209]
[1724516625219,3.1106,160.67,160.64,0.04369209]
[1724516625911,0.04760996,160.68,160.64,0.04369209]
[1724516626307,3.1108,160.66,160.64,0.04369209]
[1724516626513,0.04760996,160.68,160.64,0.04369209]
[1724516627518,3.15800996,160.68,160.64,0.04369209]
[1724516627819,0.04760996,160.68,160.64,0.04369209]
[1724516628220,2.425,160.77,160.67,23.95]
[1724516628515,3.1089,160.76,160.7,27.0599]
[1724516628713,1.2158,160.77,160.7,27.0599]
[1724516629116,1.2158,160.77,160.7,23.95]
[1724516629421,0.04467271,160.75,160.72,0.04598206]
[1724516629822,3.1092,160.74,160.72,0.04598206]
[1724516630517,0.04467271,160.75,160.72,0.04598206]
[1724516630518,3.15367271,160.75,160.72,0.04598206]
[1724516631020,3.1092,160.74,160.72,0.04598206]
[1724516631317,0.04467271,160.75,160.72,0.04598206]
[1724516631710,3.15377271,160.75,160.72,0.04598206]
[1724516631915,0.04467271,160.75,160.72,0.04598206]
[1724516633421,3.1093,160.74,160.72,0.04598206]
[1724516634122,0.04467271,160.75,160.72,23.99598206]
[1724516634528,1.2472,160.84,160.72,0.04598206]
[1724516634823,25.1972,160.84,160.72,23.95]
[1724516635217,1.2472,160.84,160.69,1.3166]
[1724516635421,1.2472,160.84,160.74,23.95]
[1724516635621,0.0460773,160.81,160.77,0.0446416]
[1724516636324,23.9960773,160.81,160.77,0.0446416]
[1724516637118,0.0460773,160.81,160.77,0.0446416]
[1724516637325,3.1082,160.79,160.77,0.0446416]
[1724516638041,0.0460773,160.81,160.77,0.0446416]
[1724516639623,3.1081,160.8,160.77,0.0446416]
[1724516639921,0.0460773,160.81,160.77,0.0446416]
[1724516640114,0.0460773,160.81,160.7,23.95]
[1724516640317,3.1084,160.78,160.72,3.1095]
[1724516640520,23.95,160.83,160.72,3.1095]
[1724516640713,23.95,160.81,160.7,23.95]
[1724516641114,0.04685757,160.77,160.74,0.03948285]
[1724516641523,0.04685757,160.77,160.75,23.95]
[1724516645133,7.49486989,161.0,160.76,23.95]
[1724516645322,7.49486989,161.0,160.76,0.3335]
[1724516645323,23.95,160.94,160.76,0.3335]
[1724516645523,1.14227507,160.93,160.83,23.95]
[1724516645826,23.95,160.91,160.8,23.95]
[1724516646228,6.77620301,160.97,160.83,23.95]
[1724516646524,1.14196229,160.96,160.85,23.95]
[1724516646730,0.04103175,160.87,160.85,23.95]
[1724516646921,1.2053,160.97,160.85,23.95]
[1724516647117,3.1057,160.92,160.89,0.04324942]
[1724516647317,0.04711335,160.93,160.89,0.04324942]
[1724516647740,23.95,160.93,160.8,23.95]
[1724516647923,23.95,160.91,160.8,23.95]
[1724516648127,23.95,160.89,160.75,23.95]
[1724516648431,2.6123,160.88,160.75,23.95]
[1724516648623,2.6123,160.88,160.75,27.0589]
[1724516648831,0.04585176,160.83,160.8,0.04363423]
[1724516649617,0.04585176,160.83,160.8,23.99363423]
[1724516651026,0.04585176,160.83,160.8,0.04363423]
[1724516653030,23.95,160.93,160.8,23.99363423]
[1724516653233,23.95,160.93,160.81,1.2552]
[1724516654134,0.04447527,160.89,160.85,0.0474041]
[1724516654634,23.95,160.88,160.73,23.95]
[1724516654936,23.95,160.82,160.72,1.2552]
[1724516655334,23.95,160.8,160.72,1.2552]
[1724516655640,23.95,160.75,160.62,24.86]
[1724516655935,23.95,160.75,160.62,50.0546]
[1724516656427,3.1098,160.71,160.63,3.1112]
[1724516656627,23.95,160.73,160.62,50.0546]
[1724516656946,0.04360863,160.69,160.68,3.1103]
[1724516657128,2.565,160.79,160.63,0.4776]
[1724516657337,2.565,160.79,160.69,23.95]
[1724516657636,3.1086,160.77,160.69,23.95]
[1724516657836,2.565,160.79,160.7,1.2446]
[1724516658033,0.04762156,160.76,160.73,0.04298139]
[1724516658737,3.1092,160.74,160.73,0.04298139]
[1724516658932,0.04762156,160.76,160.73,0.04298139]
[1724516659127,3.15662156,160.76,160.73,0.04298139]
[1724516659328,0.04762156,160.76,160.73,0.04298139]
[1724516659735,3.1092,160.74,160.73,0.04298139]
[1724516660833,3.1096,160.73,160.65,23.95]
[1724516661031,1.2908,160.76,160.65,23.95]
[1724516661239,23.95,160.74,160.64,1.2987]
[1724516661440,23.95,160.72,160.62,24.86]
[1724516661736,1.2598,160.71,160.62,24.86]
[1724516661936,0.04703547,160.68,160.65,0.04225653]
[1724516662241,1.2598,160.77,160.66,23.95]
[1724516662431,1.2598,160.77,160.69,23.95]
[1724516662940,1.2598,160.77,160.66,27.0606]
[1724516663239,3.1098,160.71,160.7,0.04732171]
[1724516663543,23.95,160.73,160.62,24.86]
[1724516663744,3.1101,160.69,160.61,23.95]
[1724516664036,1.2379,160.7,160.61,23.95]
[1724516664232,3.1094,160.74,160.67,23.95]
[1724516664431,1.2287,160.76,160.69,0.04772059]
[1724516664432,0.04109581,160.72,160.69,0.04772059]
[1724516665437,0.04109581,160.72,160.69,23.99772059]
[1724516665945,0.04109581,160.72,160.69,0.04772059]
[1724516666943,23.95,160.71,160.61,23.95]
[1724516667441,3.1103,160.68,160.61,27.0615]
[1724516667738,25.1467,160.73,160.61,23.95]
[1724516667943,25.1467,160.73,160.62,3.1113]
[1724516668143,0.0461935,160.69,160.65,0.04438287]
[1724516669743,1.1967,160.73,160.6,28.66]
[1724516669942,1.1967,160.73,160.64,28.66]
[1724516670138,1.2379,160.75,160.66,28.66]
[1724516670341,1.2379,160.75,160.69,28.66]
[1724516670645,0.04255773,160.74,160.7,0.0453656]
[1724516670837,0.04139257,160.74,160.7,0.04456125]
[1724516671850,3.1094,160.73,160.7,0.04456125]
[1724516672145,0.04139257,160.74,160.7,0.04456125]
[1724516673847,3.15059257,160.74,160.7,0.04456125]
[1724516675082,0.04139257,160.74,160.7,0.04456125]
[1724516675544,0.04139257,160.74,160.72,31.7695]
[1724516675738,0.04139257,160.74,160.7,0.04456125]
[1724516676142,0.04139257,160.74,160.72,3.1096]
[1724516676351,0.04139257,160.74,160.7,0.04456125]
[1724516676645,0.04139257,160.74,160.73,31.7694]
[1724516676844,0.04139257,160.74,160.7,1.30166125]
[1724516677353,0.04139257,160.74,160.7,0.04456125]
[1724516677744,0.04139257,160.74,160.7,3.15446125]
[1724516677946,0.04139257,160.74,160.7,0.04456125]
[1724516678341,3.1097,160.72,160.7,0.04456125]
[1724516678541,0.04139257,160.74,160.7,0.04456125]
[1724516679142,0.04139257,160.74,160.71,28.66]
[1724516679536,0.04139257,160.74,160.73,3.1094]
[1724516679940,0.04139257,160.74,160.71,28.66]
[1724516680147,0.04139257,160.74,160.72,3.1096]
[1724516681543,0.04139257,160.74,160.7,0.04456125]
[1724516682050,3.1098,160.71,160.7,0.04456125]
[1724516682246,29.8575,160.78,160.64,29.9171]
[1724516682748,29.8575,160.78,160.67,3.1105]
[1724516683346,0.04332195,160.74,160.71,0.04463725]
[1724516683743,3.1082,160.8,160.73,28.66]
[1724516683937,2.4163,160.82,160.73,28.66]
[1724516684856,3.1085,160.78,160.76,0.04255497]
[1724516685739,3.14993445,160.79,160.76,0.04255497]
[1724516686645,0.04173445,160.79,160.76,0.04255497]
[1724516687447,0.04173445,160.79,160.76,28.70255497]
[1724516687852,0.04173445,160.79,160.78,3.1084]
[1724516688039,0.04173445,160.79,160.76,28.70255497]
[1724516689350,40.10260465,161.04,160.76,57.36255497]
[1724516689564,3.7957,160.95,160.81,28.66]
[1724516689844,1.1422059,160.94,160.81,28.66]
[1724516690042,28.66,160.94,160.79,28.66]
[1724516690448,0.04102751,160.88,160.85,0.04583723]
[1724516690841,3.1069,160.86,160.85,0.04583723]
[1724516691042,28.66,160.91,160.79,28.66]
[1724516691648,28.66,160.91,160.77,1.2604]
[1724516692054,0.04242972,160.86,160.82,0.04308998]
[1724516692251,3.1078,160.81,160.74,28.66]
[1724516692552,0.04550121,160.79,160.76,0.04292472]
[1724516693753,3.1084,160.78,160.76,0.04292472]
[1724516693987,0.04550121,160.79,160.76,0.04292472]
[1724516694150,1.2444,160.77,160.68,28.66]
[1724516694351,3.109,160.75,160.69,3.11]
[1724516694555,1.2444,160.77,160.68,28.66]
[1724516694752,1.2444,160.77,160.7,2.81417953]
[1724516695154,0.04051266,160.75,160.72,0.04707485]
[1724516695950,0.04051266,160.75,160.74,3.1092]
[1724516696250,0.04051266,160.75,160.72,0.04707485]
[1724516696555,0.04051266,160.75,160.73,3.1092]
[1724516696951,0.04051266,160.75,160.72,0.04707485]
[1724516697956,3.14971266,160.75,160.72,0.04707485]
[1724516699251,3.1092,160.74,160.72,0.04707485]
[1724516699957,3.14951266,160.75,160.72,0.04707485]
[1724516700691,0.04051266,160.75,160.72,0.04707485]
[1724516700871,0.04051266,160.75,160.74,28.66]
[1724516701057,1.2444,160.82,160.74,28.66]
[1724516701257,3.1078,160.81,160.75,3.1088]
[1724516701560,1.2444,160.82,160.74,28.66]
[1724516702057,0.04711229,160.8,160.76,0.04768335]
[1724516702356,3.1083,160.79,160.76,0.04768335]
[1724516702561,0.04711229,160.8,160.76,0.04768335]
[1724516702859,29.8759,160.81,160.68,28.66]
[1724516703161,29.8759,160.81,160.69,2.81169808]
[1724516703357,29.8759,160.81,160.68,28.66]
[1724516703862,0.04083889,160.76,160.73,0.04450908]
[1724516705054,3.109,160.75,160.73,0.04450908]
[1724516705258,0.04083889,160.76,160.73,0.04450908]
[1724516705655,0.04083889,160.76,160.74,28.66]
[1724516706061,0.04083889,160.76,160.74,31.769]
[1724516706260,0.04083889,160.76,160.73,0.04450908]
[1724516706576,0.04083889,160.76,160.73,3.15370908]
[1724516707159,0.04083889,160.76,160.75,3.109]
[1724516707758,3.1074,160.84,160.75,2.80859983]
[1724516707961,3.1074,160.84,160.77,28.66]
[1724516708263,1.2457,160.86,160.77,28.66]
[1724516708463,3.1075,160.83,160.79,3.1082]
[1724516708653,0.04794812,160.83,160.79,0.0436263]
[1724516709165,0.04794812,160.83,160.69,0.2891]
[1724516709166,28.66,160.83,160.69,28.9491]
[1724516709351,28.66,160.83,160.7,8.01267837]
[1724516709569,1.2916,160.82,160.71,8.01267837]
[1724516709758,1.2916,160.82,160.72,2.80999375]
[1724516710158,0.04131077,160.79,160.75,0.04617349]
[1724516710357,0.04131077,160.79,160.76,3.1088]
[1724516711153,0.04131077,160.79,160.75,3.15507349]
[1724516711560,3.14951077,160.79,160.75,0.04617349]
[1724516711761,0.04131077,160.79,160.75,0.04617349]
[1724516712162,3.1086,160.78,160.75,0.04617349]
[1724516713190,0.04131077,160.79,160.75,0.04617349]
[1724516713471,28.66,160.81,160.68,28.66]
[1724516713770,28.66,160.75,160.64,1.2896]
[1724516713966,28.66,160.75,160.62,53.52]
[1724516713967,1.2762,160.74,160.65,5.20773416]
[1724516714267,0.04378445,160.71,160.68,0.04529701]
[1724516714570,28.66,160.7,160.58,7.63511587]
[1724516714768,2.5476,160.74,160.58,15.66396056]
[1724516714769,3.1115,160.62,160.58,15.66396056]
[1724516714965,28.66,160.67,160.59,8.02884469]
[1724516715162,1.2133,160.66,160.59,8.02884469]
[1724516715466,0.04361105,160.64,160.61,0.04131945]
[1724516718169,3.15471105,160.64,160.61,0.04131945]
[1724516718373,0.04361105,160.64,160.61,0.04131945]
[1724516718780,3.15471105,160.64,160.61,0.04131945]
[1724516719971,3.1115,160.63,160.61,0.04131945]
[1724516720269,0.04361105,160.64,160.61,0.04131945]
[1724516720461,3.1113,160.63,160.61,0.04131945]
[1724516720666,0.04361105,160.64,160.61,0.04131945]
[1724516721069,3.1115,160.63,160.61,0.04131945]
[1724516721265,0.04361105,160.64,160.61,28.70131945]
[1724516721773,0.04361105,160.64,160.61,0.04131945]
[1724516722473,0.04361105,160.64,160.61,23.92131945]
[1724516722673,0.04361105,160.64,160.63,3.1113]
[1724516723069,0.04361105,160.64,160.61,23.92131945]
[1724516723371,0.04361105,160.64,160.62,2.81519017]
[1724516723574,0.04361105,160.64,160.61,23.92131945]
[1724516723773,0.04361105,160.64,160.62,3.1113]
[1724516723971,0.04361105,160.64,160.61,23.92131945]
[1724516724282,0.04361105,160.64,160.62,5.92674111]
[1724516724574,0.04361105,160.64,160.62,3.1115]
[1724516728571,0.04361105,160.64,160.61,3.15301945]
[1724516729174,0.04361105,160.64,160.61,0.04131945]
[1724516729575,0.04361105,160.64,160.62,28.66]
[1724516729869,1.3085,160.71,160.62,29.9548]
[1724516730081,1.3085,160.71,160.63,8.01649247]
[1724516730275,1.3085,160.71,160.66,3.1107]
[1724516730872,0.04296832,160.7,160.67,0.0436629]
[1724516732877,0.04296832,160.7,160.69,3.1101]
[1724516735075,0.04296832,160.7,160.68,3.1103]
[1724516735273,0.04296832,160.7,160.67,0.0436629]
[1724516735681,0.04296832,160.7,160.69,3.1101]
[1724516735881,0.04296832,160.7,160.67,0.0436629]
[1724516737276,0.04296832,160.7,160.68,3.1102]
[1724516737880,0.04296832,160.7,160.67,0.0436629]
[1724516739291,3.1103,160.68,160.67,0.0436629]
[1724516739479,4.42776934,160.69,160.57,36.28466599]
[1724516739673,4.42776934,160.69,160.58,8.019963]
[1724516739881,3.1107,160.66,160.59,8.019963]
[1724516740080,3.1107,160.66,160.6,2.81244107]
[1724516740388,0.04726385,160.65,160.61,3.15222932]
[1724516743490,0.04726385,160.65,160.63,28.66]
[1724516743695,1.2979,160.72,160.65,28.66]
[1724516744193,1.2979,160.72,160.63,28.66]
[1724516744396,1.2979,160.72,160.64,2.81067822]
[1724516744595,0.03945793,160.7,160.66,0.04233762]
[1724516746287,0.03945793,160.7,160.67,3.1105]
[1724516746487,0.03945793,160.7,160.66,0.04233762]
[1724516747889,0.03945793,160.7,160.67,3.1105]
[1724516748991,0.03945793,160.7,160.66,0.04233762]
[1724516749392,3.1103,160.68,160.66,0.04233762]
[1724516749695,0.03945793,160.7,160.66,0.04233762]
[1724516750103,3.1102,160.69,160.66,0.04233762]
[1724516750296,0.03945793,160.7,160.66,0.04233762]
[1724516750490,23.93945793,160.7,160.66,0.04233762]
[1724516750716,3.1105,160.67,160.66,0.04233762]
[1724516750990,23.93945793,160.7,160.66,0.04233762]
[1724516751893,4.38684624,160.69,160.66,0.04233762]
[1724516752196,3.1103,160.68,160.66,0.04233762]
[1724516752694,3.1105,160.67,160.66,0.04233762]
[1724516752992,3.1105,160.67,160.58,23.9]
[1724516753187,3.1105,160.67,160.59,8.01997418]
[1724516753393,3.1104,160.68,160.62,3.1115]
[1724516753592,3.1104,160.68,160.58,23.9]
[1724516753788,1.3173,160.69,160.6,23.9]
[1724516753993,1.2979,160.72,160.63,0.04297633]
[1724516753994,0.04641198,160.66,160.63,0.04297633]
[1724516754602,0.04641198,160.66,160.65,3.1109]
[1724516756003,1.2979,160.72,160.65,2.8103992]
[1724516756207,2.5209,160.77,160.68,23.9]
[1724516756404,2.5209,160.77,160.71,3.1096]
[1724516756405,3.1089,160.76,160.71,3.1096]
[1724516756606,3.1089,160.76,160.68,23.9]
[1724516756805,0.04088726,160.74,160.72,23.9]
[1724516757004,3.1082,160.8,160.75,3.1089]
[1724516757199,3.1082,160.8,160.72,23.9]
[1724516757405,0.04282658,160.79,160.76,0.04615549]
[1724516757907,0.04282658,160.79,160.76,3.15485549]
[1724516758298,0.04282658,160.79,160.78,3.1084]
[1724516758503,23.9,160.91,160.77,23.9]
[1724516758709,1.2524,160.91,160.8,23.9]
[1724516758901,1.2524,160.91,160.81,3.1077]
[1724516759100,1.2524,160.91,160.79,23.9]
[1724516759507,0.04662637,160.87,160.83,0.04305171]
[1724516760717,1.2646,160.95,160.83,0.04305171]
[1724516760718,23.9,160.98,160.86,23.9]
[1724516760908,23.9,160.96,160.84,23.9]
[1724516761104,23.9,160.96,160.85,3.107]
[1724516761307,23.9,160.94,160.82,23.9]
[1724516761716,3.1519513,160.9,160.86,0.04231374]
[1724516762009,0.0458513,160.9,160.86,0.04231374]
[1724516762319,23.9,160.89,160.86,0.04231374]
[1724516762519,23.9,160.89,160.75,25.2238]
[1724516762520,23.9,160.87,160.75,25.2238]
[1724516762813,25.2179,160.89,160.79,3.1082]
[1724516763112,25.2179,160.89,160.78,23.9]
[1724516763414,3.1073,160.84,160.82,0.04410054]
[1724516763612,0.04385713,160.85,160.82,0.04410054]
[1724516764009,3.15095713,160.85,160.82,0.04410054]
[1724516764409,0.04385713,160.85,160.82,0.04410054]
[1724516764715,3.1074,160.83,160.82,0.04410054]
[1724516766916,3.1085,160.78,160.75,1.3238]
[1724516767214,23.9,160.81,160.75,1.3238]
[1724516768012,23.9,160.81,160.76,0.04128271]
[1724516768214,0.04450049,160.8,160.76,0.04128271]
[1724516769325,3.15270049,160.8,160.76,0.04128271]
[1724516769517,0.04450049,160.8,160.76,0.04128271]
[1724516770716,0.04450049,160.8,160.76,3.15008271]
[1724516771220,3.15250049,160.8,160.76,0.04128271]
[1724516771621,0.04450049,160.8,160.76,0.04128271]
[1724516771843,0.04450049,160.8,160.76,3.15008271]
[1724516772019,1.2725,160.87,160.76,23.94128271]
[1724516772326,23.9,160.91,160.78,23.9]
[1724516772625,23.9,160.89,160.78,3.1084]
[1724516773226,0.04520049,160.85,160.82,0.04444973]
[1724516773634,3.1074,160.83,160.82,0.04444973]
[1724516774536,23.9,160.82,160.75,1.3238]
[1724516774923,23.9,160.82,160.71,0.289]
[1724516775142,23.9,160.8,160.71,1.2291]
[1724516775328,0.0428262,160.77,160.74,0.03950468]
[1724516775726,3.109,160.76,160.74,0.03950468]
[1724516776419,0.0428262,160.77,160.74,0.03950468]
[1724516778826,3.1516262,160.77,160.74,0.03950468]
[1724516779025,0.0428262,160.77,160.74,0.03950468]
[1724516779427,0.0428262,160.77,160.74,3.14850468]
[1724516779828,0.0428262,160.77,160.74,0.03950468]
[1724516780231,2.5897,160.86,160.75,23.9]
[1724516780733,3.1075,160.83,160.78,3.1082]
[1724516780927,2.5897,160.86,160.75,23.9]
[1724516781129,1.3093,160.87,160.77,23.9]
[1724516781331,0.04544733,160.84,160.8,0.04500498]
[1724516781524,0.04544733,160.84,160.8,3.15300498]
[1724516782236,3.15274733,160.84,160.8,0.04500498]
[1724516782631,0.04544733,160.84,160.8,0.04500498]
[1724516782837,0.04544733,160.84,160.8,3.15300498]
[1724516783928,3.15274733,160.84,160.8,0.04500498]
[1724516784338,0.04544733,160.84,160.8,0.04500498]
[1724516784529,3.1076,160.83,160.8,0.04500498]
[1724516784735,23.94544733,160.84,160.8,0.04500498]
[1724516786733,23.9,160.82,160.8,0.04500498]
[1724516787341,0.04544733,160.84,160.8,0.04500498]
[1724516788033,23.94544733,160.84,160.8,0.04500498]
[1724516788251,0.04544733,160.84,160.8,0.04500498]
[1724516788469,1.2326,160.94,160.83,3.1074]
[1724516788633,23.9,160.92,160.78,23.9]
[1724516788857,23.9,160.92,160.81,23.9]
[1724516789048,2.5367,160.93,160.81,23.9]
[1724516789444,2.5367,160.93,160.82,2.79698963]
[1724516789642,0.04339228,160.89,160.85,3.15471273]
[1724516790640,0.04339228,160.89,160.86,3.1069]
[1724516790946,0.04339228,160.89,160.85,0.04771273]
[1724516791140,3.1066,160.88,160.85,0.04771273]
[1724516791347,0.04339228,160.89,160.85,0.04771273]
[1724516791743,0.04339228,160.89,160.85,3.15471273]
[1724516792643,0.04339228,160.89,160.86,3.1068]
[1724516793742,0.04339228,160.89,160.87,3.1065]
[1724516793949,0.04339228,160.89,160.87,23.9]
[1724516794851,0.04339228,160.89,160.88,3.1065]
[1724516796441,0.04339228,160.89,160.86,3.1068]
[1724516796646,0.04339228,160.89,160.85,23.94771273]
[1724516797047,0.04339228,160.89,160.88,27.0065]